fUST/lending_fUST_20250825
["ID","MTS","AMOUNT","RATE_DAILY","PERIOD"]
[381196030,1756095045740,-1000.0,0.00031421,5]
[381196031,1756095045750,-514.91450767,0.00031421,5]
[381196032,1756095045759,-1007.94210207,0.00031421,5]
[381196033,1756095045768,-508.16767829,0.00031421,5]
[381196034,1756095045777,-1000.0,0.00031421,5]
[381196035,1756095045786,-1000.0,0.00031421,5]
[381196036,1756095045795,-2883.26798831,0.00031452,2]
[381196037,1756095045805,-4000.0,0.00031462,4]
[381196038,1756095045814,-300.0,0.00031483,20]
[381196039,1756095045823,-300.0,0.00031483,20]
[381196040,1756095045832,-505.6112394,0.00031608,5]
[381196041,1756095045842,-500.0,0.00031608,5]
[381196042,1756095045851,-504.46664483,0.00031608,5]
[381196043,1756095045860,-502.42490781,0.00031617,5]
[381196044,1756095045869,-163.90930456,0.00031617,5]
[381196045,1756095045878,-216.04034502,0.00031722,2]
[381196046,1756095045889,-217.12848614,0.0003176,2]
[381196047,1756095045898,-160.0,0.0003176,2]
[381196048,1756095045907,-160.0,0.0003176,2]
[381196049,1756095045917,-160.0,0.0003176,2]
[381196050,1756095045926,-433.81192785,0.00031921,5]
[381196051,1756095045935,-502.95667087,0.00031921,5]
[381196052,1756095045944,-1002.94876973,0.00031921,5]
[381196053,1756095045954,-517.40359283,0.00031921,5]
[381196054,1756095045963,-497.62415652,0.00031921,5]
[381196055,1756095045973,-1000.0,0.00031921,5]
[381196056,1756095045982,-1000.0,0.00031921,5]
[381196057,1756095045991,-545.28516591,0.00031921,5]
[381196058,1756095046000,-1500.0,0.00031968,5]
[381196059,1756095046011,-264.85274484,0.00031968,5]
[381196060,1756095046020,-1500.0,0.00031968,5]
[381196061,1756095046030,-207.18083754,0.00031986,17]
[381196062,1756095046039,-501.68822073,0.00032155,5]
[381196063,1756095046048,-1058.88,0.00032171,3]
[381196064,1756095046057,-529.44,0.00032171,3]
[381196065,1756095046067,-3857.3241742,0.00032335,2]
[381196066,1756095046076,-151.642161,0.00032335,7]
[381196068,1756095046086,-151.0,0.00032335,7]
[381196069,1756095046095,-266.296,0.00032335,7]
[381196070,1756095046106,-151.0,0.00032335,7]
[381196071,1756095046115,-151.0,0.00032335,7]
[381196072,1756095046124,-158.096637,0.00032335,7]
[381196073,1756095046135,-158.096637,0.00032335,7]
[381196074,1756095046145,-158.096637,0.00032335,7]
[381196075,1756095046154,-158.096637,0.00032335,7]
[381196076,1756095046164,-152.219449,0.00032335,7]
[381196077,1756095046173,-1500.0,0.00032468,5]
[381196079,1756095046182,-1500.0,0.00032468,5]
[381196080,1756095046192,-151.0,0.00032516,7]
[381196081,1756095046201,-151.0,0.00032516,7]
[381196082,1756095046211,-151.0,0.00032516,7]
[381196083,1756095046221,-151.0,0.00032516,7]
[381196084,1756095046230,-151.0,0.00032516,7]
[381196086,1756095046240,-151.0,0.00032516,7]
[381196087,1756095046249,-151.0,0.00032516,7]
[381196088,1756095046259,-152.708308,0.00032516,7]
[381196089,1756095046268,-151.0,0.00032516,7]
[381196090,1756095046277,-151.0,0.00032516,7]
[381196091,1756095046286,-151.0,0.00032516,7]
[381196092,1756095046296,-151.0,0.00032516,7]
[381196093,1756095046306,-151.0,0.00032516,7]
[381196094,1756095046316,-163.284195,0.00032516,7]
[381196095,1756095046325,-151.0,0.00032516,7]
[381196096,1756095046334,-261.672958,0.00032516,7]
[381196097,1756095046344,-151.0,0.00032516,7]
[381196098,1756095046353,-927.09557234,0.00032516,5]
[381196099,1756095046362,-2000.0,0.00032516,5]
[381196100,1756095046372,-151.0,0.00032876,7]
[381196101,1756095046382,-151.0,0.00032876,7]
[381196102,1756095046392,-277.481175,0.00032876,7]
[381196103,1756095046401,-1166.34,0.00032876,120]
[381196104,1756095046410,-300.0,0.00032877,120]
[381196105,1756095046421,-151.0,0.00032888,7]
[381196106,1756095046430,-151.0,0.00032888,7]
[381196107,1756095046439,-152.71019,0.00032888,7]
[381196108,1756095046449,-151.0,0.00032888,7]
[381196109,1756095046459,-151.0,0.00032888,7]
[381196110,1756095046468,-5000.0,0.00032888,4]
[381196111,1756095046477,-2000.0,0.00033016,5]
[381196112,1756095046486,-1016.63271749,0.00033016,5]
[381196113,1756095046496,-1875.59575343,0.00033052,2]
[381196124,1756095046899,-1007.67223488,0.00033052,2]
[381196125,1756095046908,-5268.56,0.00033062,4]
[381196126,1756095046918,-157.41577,0.00033062,7]
[381196127,1756095046927,-151.0,0.00033062,7]
[381196128,1756095046938,-151.0,0.00033062,7]
[381196129,1756095046948,-224.184105,0.00033062,7]
[381196130,1756095046958,-224.184105,0.00033062,7]
[381196131,1756095046967,-224.184105,0.00033062,7]
[381196132,1756095046977,-151.0,0.00033062,7]
[381196133,1756095046986,-224.184105,0.00033062,7]
[381196134,1756095046995,-151.0,0.00033062,7]
[381196135,1756095047004,-151.0,0.00033062,7]
[381196136,1756095047014,-245.0,0.00033062,7]
[381196137,1756095047023,-151.0,0.00033062,7]
[381196138,1756095047033,-151.0,0.00033062,7]
[381196139,1756095047042,-151.0,0.00033062,7]
[381196140,1756095047052,-155.705249,0.00033064,7]
[381196141,1756095047062,-151.0,0.00033064,7]
[381196142,1756095047071,-151.0,0.00033064,7]
[381196143,1756095047081,-152.336595,0.00033064,7]
[381196144,1756095047091,-1682.74676536,0.00033064,5]
[381196145,1756095047100,-500.82237363,0.00033073,5]
[381196146,1756095047110,-502.14996695,0.000331,5]
[381196147,1756095047119,-500.0,0.000331,5]
[381196148,1756095047128,-501.2527475,0.000331,5]
[381196149,1756095047138,-193.837933,0.000331,7]
[381196150,1756095047147,-243.292129,0.000331,7]
[381196151,1756095047156,-151.0,0.000331,7]
[381196152,1756095047166,-193.837933,0.000331,7]
[381196153,1756095047175,-193.837933,0.000331,7]
[381196154,1756095047185,-187.78151,0.000331,7]
[381196155,1756095047194,-193.837933,0.000331,7]
[381196156,1756095047203,-187.78151,0.000331,7]
[381196157,1756095047213,-187.78151,0.000331,7]
[381196158,1756095047222,-187.78151,0.000331,7]
[381196159,1756095047231,-151.0,0.000331,7]
[381196160,1756095047241,-501.57206833,0.00033106,5]
[381196161,1756095047250,-506.15565783,0.00033106,5]
[381196162,1756095047259,-695.91529366,0.00033119,2]
[381196163,1756095047268,-221.863033,0.00033165,2]
[381196164,1756095047278,-504.34246604,0.000333,5]
[381196165,1756095047287,-500.0,0.000333,5]
[381196166,1756095047296,-500.0,0.000333,2]
[381196167,1756095047305,-251.5011863,0.00033304,2]
[381196168,1756095047314,-156.419481,0.00033364,20]
[381196169,1756095047323,-2500.0,0.00033564,5]
[381196170,1756095047332,-156.419481,0.00033591,2]
[381196171,1756095047342,-502.12566295,0.00033648,5]
[381196172,1756095047351,-207.18083754,0.00033712,21]
[381196173,1756095047362,-151.0,0.00033772,7]
[381196174,1756095047372,-151.0,0.00033772,7]
[381196175,1756095047382,-151.0,0.00033772,7]
[381196176,1756095047391,-151.0,0.00033772,7]
[381196177,1756095047401,-200.0,0.00033776,120]
[381196178,1756095047410,-153.365074,0.0003379,7]
[381196179,1756095047420,-151.0,0.0003379,7]
[381196180,1756095047429,-151.0,0.0003379,7]
[381196181,1756095047439,-151.0,0.0003379,7]
[381196182,1756095047448,-151.0,0.0003379,7]
[381196183,1756095047457,-151.0,0.0003379,7]
[381196184,1756095047466,-151.0,0.0003379,7]
[381196185,1756095047475,-151.0,0.0003379,7]
[381196186,1756095047484,-151.0,0.0003379,7]
[381196187,1756095047494,-151.0,0.0003379,7]
[381196188,1756095047505,-151.0,0.0003379,7]
[381196189,1756095047514,-151.0,0.0003379,7]
[381196190,1756095047523,-151.0,0.0003379,7]
[381196191,1756095047533,-151.0,0.0003379,7]
[381196192,1756095047543,-11182.22,0.000338,14]
[381196193,1756095047552,-151.0,0.000338,7]
[381196194,1756095047561,-151.0,0.000338,7]
[381196195,1756095047570,-151.0,0.000338,7]
[381196196,1756095047581,-151.0,0.000338,7]
[381196197,1756095047591,-208.258091,0.000338,7]
[381196198,1756095047600,-208.258091,0.000338,7]
[381196199,1756095047610,-208.258091,0.000338,7]
[381196200,1756095047619,-208.258082,0.000338,7]
[381196201,1756095047629,-219.152826,0.000338,7]
[381196202,1756095047639,-219.152826,0.000338,7]
[381196203,1756095047648,-219.152826,0.000338,7]
[381196204,1756095047658,-219.152829,0.000338,7]
[381196205,1756095047667,-272.110917,0.000338,7]
[381196206,1756095047676,-272.110917,0.000338,7]
[381196207,1756095047686,-457.030685,0.000338,7]
[381196208,1756095047695,-272.110917,0.000338,7]
[381196209,1756095047704,-457.030685,0.000338,7]
[381196210,1756095047714,-151.0,0.000338,7]
[381196211,1756095047723,-457.030685,0.000338,7]
[381196212,1756095047732,-151.0,0.000338,7]
[381196213,1756095047741,-272.110908,0.000338,7]
[381196214,1756095047751,-457.030691,0.000338,7]
[381196215,1756095047760,-151.0,0.000338,7]
[381196216,1756095047769,-151.0,0.000338,7]
[381196217,1756095047779,-151.0,0.000338,7]
[381196218,1756095047788,-465.752906,0.000338,7]
[381196219,1756095047983,-465.752906,0.000338,7]
[381196220,1756095047995,-465.752906,0.000338,7]
[381196221,1756095048004,-465.752905,0.000338,7]
[381196222,1756095048014,-151.0,0.000338,7]
[381196223,1756095048024,-151.0,0.000338,7]
[381196224,1756095048034,-162.273453,0.000338,7]
[381196225,1756095048044,-152.848781,0.000338,7]
[381196226,1756095048054,-152.848781,0.000338,7]
[381196227,1756095048063,-152.848781,0.000338,7]
[381196228,1756095048073,-152.848783,0.000338,7]
[381196229,1756095048083,-151.0,0.000338,7]
[381196230,1756095048093,-242.190425,0.000338,7]
[381196231,1756095048102,-242.190425,0.000338,7]
[381196232,1756095048111,-242.190425,0.000338,7]
[381196233,1756095048121,-242.19043304,0.000338,7]
[381196234,1756095048131,-151.0,0.000338,7]
[381196235,1756095048143,-151.0,0.000338,7]
[381196236,1756095048153,-151.0,0.000338,7]
[381196237,1756095048162,-585.588988,0.000338,7]
[381196238,1756095048172,-237.289253,0.000338,7]
[381196239,1756095048182,-585.588988,0.000338,7]
[381196240,1756095048191,-237.289253,0.000338,7]
[381196241,1756095048201,-585.588988,0.000338,7]
[381196242,1756095048210,-237.289253,0.000338,7]
[381196243,1756095048220,-585.5889844,0.000338,7]
[381196244,1756095048229,-237.289252,0.000338,7]
[381196245,1756095048239,-151.0,0.000338,7]
[381196246,1756095048249,-502.47997448,0.00033848,5]
[381196247,1756095048258,-1000.0,0.00033848,2]
[381196248,1756095048268,-823.0,0.00033941,2]
[381196249,1756095048277,-248.508858,0.00033981,2]
[381196250,1756095048287,-2046.08317985,0.00034112,5]
[381196251,1756095048297,-2129.13963399,0.00034243,2]
[381196252,1756095048307,-2883.26798831,0.0003429,2]
[381196253,1756095048317,-3091.72,0.000343,7]
[381196254,1756095048326,-1012.05791599,0.00034396,2]
[381196255,1756095048336,-153.0,0.000344,120]
[381196256,1756095048345,-1166.34,0.0003452,120]
[381196257,1756095048355,-151.0,0.00035292,7]
[381196258,1756095048365,-151.0,0.00035292,7]
[381196259,1756095048375,-151.0,0.00035292,7]
[381196260,1756095048386,-151.0,0.00035292,7]
[381196261,1756095048396,-207.18083754,0.00035439,24]
[381196262,1756095048407,-695.91529366,0.00035583,2]
[381196263,1756095048417,-369.60379831,0.00035616,7]
[381196264,1756095048427,-300.0,0.00035616,120]
[381196265,1756095048438,-156.419481,0.00035682,2]
[381196266,1756095048448,-156.419481,0.0003584,20]
[381196267,1756095048458,-1166.34,0.00036164,120]
[381196268,1756095048468,-581.6464433,0.00036244,30]
[381196269,1756095048478,-581.6464433,0.00036244,30]
[381196270,1756095048488,-403.0202518,0.00036244,30]
[381196271,1756095048498,-471.823692,0.00036244,30]
[381196272,1756095048512,-6910.50677463,0.00036342,2]
[381196273,1756095048522,-158.096637,0.00036442,30]
[381196274,1756095048533,-158.096637,0.00036442,30]
[381196275,1756095048543,-158.096637,0.00036442,30]
[381196276,1756095048552,-158.096637,0.00036442,30]
[381196277,1756095048562,-1152.0,0.000367,2]
[381196278,1756095048571,-151.63519642,0.00036816,2]
[381196279,1756095048583,-605.93424489,0.00036816,2]
[381196280,1756095048593,-537.06229316,0.00036973,5]
[381196281,1756095048602,-588.93873768,0.00036973,5]
[381196282,1756095048612,-350.52803341,0.00036973,5]
[381196283,1756095048621,-2883.26798831,0.0003699,3]
[381196284,1756095048631,-11182.22,0.00037,14]
[381196285,1756095048642,-151.0,0.00037,30]
[381196286,1756095048651,-151.0,0.00037,30]
[381196287,1756095048661,-151.0,0.00037,30]
[381196288,1756095048670,-151.0,0.00037,30]
[381196289,1756095048680,-151.0,0.00037,30]
[381196290,1756095048690,-151.0,0.00037,30]
[381196291,1756095048703,-151.0,0.00037,30]
[381196292,1756095048713,-151.0,0.00037,30]
[381196293,1756095048722,-151.0,0.00037,30]
[381196294,1756095048732,-151.0,0.00037,30]
[381196295,1756095048741,-151.0,0.00037,30]
[381196296,1756095048750,-158.440349,0.00037,30]
[381196297,1756095048760,-151.0,0.00037,30]
[381196298,1756095048770,-151.0,0.00037,30]
[381196299,1756095048780,-151.0,0.00037,30]
[381196300,1756095048789,-151.0,0.00037,30]
[381196301,1756095048808,-165.290678,0.00037,30]
[381196302,1756095048819,-151.0,0.00037,30]
[381196303,1756095048829,-151.0,0.00037,30]
[381196304,1756095048839,-160.0,0.00037,30]
[381196305,1756095048849,-529.29072822,0.00037,30]
[381196306,1756095048859,-3.57953514,0.00037042,30]
[381196307,1756095048875,-147.42046486,0.00037042,30]
[381196308,1756095048887,-151.0,0.00037042,30]
[381196309,1756095048897,-23.81422604,0.00037042,30]
[381196310,1756095050067,-199.0,0.00027644,30]
[381196311,1756095050077,-123.94884732,0.00030037,120]
[381196312,1756095050088,-75.05115268,0.00030037,120]
[381196313,1756095050097,-180.70831575,0.00030801,10]
[381196314,1756095059090,163.0,0.000265,7]
[381196315,1756095094438,340.59842626,0.0002249,2]
[381196316,1756095094748,340.59842626,0.00025943,4]
[381196317,1756095263106,319.72500486,0.0002249,2]
[381196318,1756095263573,319.72500486,0.00025943,4]
[381196320,1756095432930,290.90706004,0.0002249,2]
[381196321,1756095433336,290.90706004,0.00025943,4]
[381196326,1756095609009,252.11945204,0.0002249,2]
[381196327,1756095609379,252.11945204,0.00025943,4]
[381196328,1756095640365,17893.77583501,0.000265,3]
[381196329,1756095650627,30569.91416499,0.00026,3]
[381196330,1756095776550,909.0,0.00027397,120]
[381196331,1756095894279,6464.0,0.000241,2]
[381196332,1756095903064,4314.51803312,0.00026,3]
[381196333,1756095978231,377.01438356,0.0002249,2]
[381196334,1756095978333,377.01438356,0.00025943,4]
[381196335,1756095978554,565.52157534,0.00025943,4]
[381196336,1756096012114,-189.95203211,0.00024216,2]
[381196339,1756096129231,6891.09436188,0.00019063,2]
[381196340,1756096129255,10614.54462431,0.00019063,2]
[381196341,1756096144973,529.96311173,0.000199,2]
[381196342,1756096145135,529.9631117,0.00023353,2]
[381196343,1756096145426,529.9631117,0.00021627,2]
[381196344,1756096165150,-360.73362093,0.0002508,2]
[381196345,1756096168189,230.969787,0.00013699,2]
[381196346,1756096168596,230.969787,0.00020187,2]
[381196383,1756096232062,-169.22949077,0.0002508,2]
[381196384,1756096232071,-230.969787,0.00026676,2]
[381196386,1756096232080,-529.9631117,0.00026806,6]
[381196388,1756096232089,-189.18653294,0.0002729,2]
[381196390,1756096232099,-189.18653293,0.00028145,2]
[381196392,1756096232108,-1000.0,0.00028774,30]
[381196394,1756096232116,-189.18653293,0.00029,2]
[381196396,1756096232126,-189.18653293,0.00029855,2]
[381196398,1756096232135,-1016.04419448,0.00030037,14]
[381196400,1756096232144,-529.9631117,0.00030259,13]
[381196402,1756096232153,-189.18653293,0.0003071,2]
[381196404,1756096232162,-1200.0,0.00030786,2]
[381196406,1756096232171,-259.0,0.000308,2]
[381196408,1756096232179,-400.0,0.000308,2]
[381196410,1756096232188,-178.66,0.00030801,3]
[381196412,1756096232197,-178.67,0.00030801,3]
[381196414,1756096232205,-536.01,0.00030801,3]
[381196415,1756096232215,-3652.41273671,0.0003081,2]
[381196416,1756096232223,-202.22517631,0.0003081,10]
[381196417,1756096232232,-316.84055086,0.0003081,2]
[381196418,1756096232243,-183.15944914,0.0003081,2]
[381196419,1756096232253,-428.63555086,0.0003081,2]
[381196420,1756096232270,-71.36444914,0.0003081,2]
[381196421,1756096232280,-337.36935896,0.0003081,2]
[381196422,1756096232289,-102.1661919,0.0003081,2]
[381196423,1756096232300,-397.8338081,0.0003081,2]
[381196424,1756096232310,-500.0,0.0003081,2]
[381196425,1756096232319,-500.0,0.0003081,2]
[381196426,1756096232328,-17.95645161,0.0003081,2]
[381196439,1756096237782,-199.0,0.00028674,30]
[381196440,1756096237791,-82.0,0.00030711,2]
[381196441,1756096237892,-6219.45363406,0.00030711,2]
[381196442,1756096237901,-2254.49,0.00030801,10]
[381196443,1756096237910,-482.04354839,0.0003081,2]
[381196445,1756096237919,-500.0,0.0003081,2]
[381196446,1756096237928,-500.0,0.0003081,2]
[381196447,1756096237938,-244.82200766,0.0003081,2]
[381196448,1756096237947,-500.0,0.0003081,2]
[381196449,1756096237956,-497.23353493,0.0003081,2]
[381196450,1756096237965,-500.0,0.0003081,2]
[381196451,1756096237974,-500.0,0.0003081,2]
[381196452,1756096237983,-475.98194325,0.0003081,2]
[381196453,1756096237992,-500.0,0.0003081,2]
[381196454,1756096238001,-420.69891819,0.0003081,2]
[381196455,1756096238010,-500.0,0.0003081,2]
[381196456,1756096238019,-569.38677492,0.0003081,2]
[381196457,1756096238028,-500.0,0.0003081,2]
[381196458,1756096238037,-250.0,0.0003081,2]
[381196459,1756096238047,-310.89154976,0.0003081,2]
[381196460,1756096238056,-502.39106247,0.0003081,2]
[381196461,1756096238068,-500.0,0.0003081,2]
[381196462,1756096238078,-500.0,0.0003081,2]
[381196463,1756096238087,-500.0,0.0003081,2]
[381196464,1756096238097,-500.0,0.0003081,2]
[381196465,1756096238106,-435.92659738,0.0003081,2]
[381196466,1756096238115,-500.0,0.0003081,2]
[381196467,1756096238125,-500.0,0.0003081,2]
[381196468,1756096238135,-500.0,0.0003081,2]
[381196469,1756096238144,-500.0,0.0003081,2]
[381196470,1756096238154,-500.0,0.00030811,20]
[381196471,1756096238163,-864855.26648599,0.00030811,20]
[381196472,1756096238175,-19111.37651791,0.00030811,20]
[381196473,1756096238184,-313.66731382,0.00030811,2]
[381196474,1756096238193,-1219.23860058,0.00030811,120]
[381196475,1756096238203,-380.8721413,0.00030811,5]
[381196476,1756096238212,-500.0,0.00030873,5]
[381196477,1756096238221,-169.9133702,0.00030873,5]
[381196478,1756096238230,-500.0,0.00030873,5]
[381196479,1756096238239,-151.94014244,0.00030887,2]
[381196480,1756096238248,-425.94947891,0.00030887,2]
[381196481,1756096238258,-2782.55,0.000309,7]
[381196482,1756096238267,-4674.2,0.000309,2]
[381196483,1756096238277,-340.45,0.000309,7]
[381196484,1756096238286,-232.4766599,0.000309,7]
[381196485,1756096238295,-11010.33,0.000309,7]
[381196486,1756096238304,-2687.92811787,0.0003099,2]
[381196487,1756096238313,-153.0,0.00031,120]
[381196488,1756096238323,-300.0,0.00031416,20]
[381196489,1756096238332,-186.381643,0.0003142,2]
[381196490,1756096238341,-199.64761663,0.00031421,5]
[381196491,1756096238351,-511.69018592,0.00031421,5]
[381196492,1756096238360,-607.15280921,0.00031501,2]
[381196493,1756096238370,-529.9631117,0.00031986,17]
[381196494,1756096238381,-10000.0,0.00032156,2]
[381196495,1756096238390,-357.32,0.00032171,3]
[381196496,1756096238399,-357.34,0.00032171,3]
[381196497,1756096238409,-666.0,0.00032259,2]
[381196498,1756096238419,-264.96230179,0.0003242,2]
[381196499,1756096238428,-2007.87233368,0.0003252,5]
[381196500,1756096238437,-1702.09411773,0.00032695,2]
[381196501,1756096238446,-652.76729633,0.00033,2]
[381196502,1756096238455,-230.969787,0.00033165,2]
[381196503,1756096238464,-560.0,0.00033168,2]
[381196504,1756096238473,-800.0,0.00033428,2]
[381196505,1756096238482,-11010.33,0.000335,14]
[381196506,1756096238491,-251.5011863,0.00033513,2]
[381196507,1756096238500,-4674.2,0.000336,14]
[381196508,1756096238509,-529.9631117,0.00033712,21]
[381196509,1756096238518,-300.0,0.00034167,120]
[381196510,1756096238528,-153.0,0.000344,120]
[381196511,1756096238537,-500.0,0.00034567,5]
[381196512,1756096238546,-500.0,0.00034567,5]
[381196513,1756096238556,-228.352,0.00034579,39]
[381196514,1756096238566,-829.8119874,0.00035343,120]
[381196535,1756096242919,-4227.38962856,0.00035343,120]
[381196536,1756096242929,-529.9631117,0.00035439,24]
[381196537,1756096242939,-369.60379831,0.00035616,7]
[381196538,1756096242948,-783.0,0.00035718,2]
[381196539,1756096242957,-186.381643,0.00035986,2]
[381196541,1756096242966,-403.0202518,0.00036152,30]
[381196542,1756096242976,-1163.2928866,0.00036152,30]
[381196543,1756096242986,-263.1825557,0.00036606,2]
[381196544,1756096242995,-3745.16610633,0.00036606,2]
[381196585,1756096319839,370.97417819,0.000199,2]
[381196586,1756096319939,370.97417819,0.00023353,2]
[381196607,1756096486559,376.17785469,0.000199,2]
[381196608,1756096486768,376.17785441,0.00021627,2]
[381196609,1756096486912,376.17785441,0.00023353,2]
[381196612,1756096653998,338.56006923,0.000199,2]
[381196613,1756096654258,338.56006896,0.00023353,2]
[381196614,1756096654448,338.56006896,0.00021627,2]
[381196651,1756096823839,304.70406218,0.000199,2]
[381196652,1756096824192,304.70406206,0.00023353,2]
[381196653,1756096824504,304.70406206,0.00021627,2]
[381196654,1756096835072,500.0,0.00021,2]
[381196682,1756096993501,269.83069594,0.000199,2]
[381196683,1756096994374,269.83069582,0.00023353,2]
[381196684,1756096994568,269.83069582,0.00021627,2]
[381196685,1756097024987,1000.0,0.00021,2]
[381196691,1756097161034,267.41909121,0.00021627,2]
[381196692,1756097161679,267.41909121,0.00023353,2]
[381196703,1756097185631,2000.0,0.000241,2]
[381196713,1756097205172,5000.0,0.00026,3]
[381196714,1756097213096,5000.0,0.00026,3]
[381196715,1756097221159,4173.03184299,0.00026,3]
[381196716,1756097229147,-5817.4357783,0.00024794,2]
[381196717,1756097229167,-1000.0,0.00024893,2]
[381196718,1756097229188,-300.0,0.00024999,2]
[381196719,1756097229209,-500.0,0.00025,2]
[381196720,1756097229228,-1238.67,0.00025,2]
[381196721,1756097229258,-267.41909121,0.0002508,2]
[381196722,1756097229278,-182.310465,0.0002534,2]
[381196723,1756097229299,-1200.0,0.00025746,2]
[381196724,1756097229319,-10000.0,0.00025747,2]
[381196725,1756097229340,-2000.0,0.00026,2]
[381196726,1756097229362,-1000.0,0.00026,2]
[381196727,1756097229384,-826.96815701,0.00026,3]
[381196728,1756097229409,-300.0,0.00026261,20]
[381196729,1756097229432,-300.0,0.00026261,20]
[381196730,1756097229458,-300.0,0.00026261,20]
[381196731,1756097229480,-300.0,0.00026261,20]
[381196732,1756097229503,-300.0,0.00026261,20]
[381196733,1756097229527,-300.0,0.00026261,20]
[381196734,1756097229549,-300.0,0.00026261,20]
[381196735,1756097229571,-300.0,0.00026261,20]
[381196736,1756097229594,-300.0,0.00026261,20]
[381196737,1756097229621,-300.0,0.00026261,20]
[381196738,1756097229645,-300.0,0.00026261,20]
[381196739,1756097229667,-300.0,0.00026261,20]
[381196740,1756097229906,-300.0,0.00026261,20]
[381196741,1756097229927,-17945.95384543,0.00026261,2]
[381196742,1756097229946,-545.28516591,0.0002665,2]
[381196743,1756097229965,-511.69018592,0.0002665,2]
[381196744,1756097229993,-267.41909121,0.00026806,6]
[381196745,1756097230013,-775.82623294,0.000269,2]
[381196746,1756097230033,-500.0,0.00026998,2]
[381196747,1756097230052,-500.0,0.00026998,2]
[381196748,1756097230073,-500.0,0.00026998,2]
[381196749,1756097230094,-500.0,0.00026998,2]
[381196750,1756097230114,-500.0,0.00026998,2]
[381196751,1756097230134,-549.72335349,0.00026998,2]
[381196752,1756097230155,-500.0,0.00026998,2]
[381196753,1756097230175,-500.0,0.00026998,2]
[381196754,1756097230196,-541.19085406,0.00026998,2]
[381196755,1756097230215,-1000.0,0.00027,2]
[381196756,1756097230236,-2000.0,0.00027,2]
[381196757,1756097230256,-5000.0,0.00027,2]
[381196758,1756097230276,-299.713,0.00027,15]
[381196759,1756097230295,-511.85173203,0.00027,2]
[381196760,1756097230314,-500.0,0.00027,2]
[381196761,1756097230333,-500.0,0.00027,2]
[381196762,1756097230353,-200.0,0.00027,2]
[381196763,1756097230377,-420.0,0.00027082,2]
[381196764,1756097230397,-516.63271749,0.00027548,5]
[381196765,1756097230418,-1000.0,0.00027548,5]
[381196766,1756097230438,-401.54798585,0.00027685,5]
[381196767,1756097230460,-3000.0,0.00028,2]
[381196768,1756097230480,-1500.0,0.00028096,5]
[381196769,1756097230509,-267.41909121,0.00028533,10]
[381196770,1756097230532,-2000.0,0.00028644,5]
[381196771,1756097230552,-160.0,0.00029,10]
[381196772,1756097230572,-182.74676536,0.00029192,5]
[381196773,1756097230591,-587.0,0.00029339,2]
[381196774,1756097230610,-775.82623294,0.0002997,2]
[381196775,1756097230636,-267.41909121,0.00030259,13]
[381196776,1756097230655,-155.0,0.00031,120]
[381196777,1756097230673,-666.0,0.00031095,2]
[381196778,1756097230692,-217.12848614,0.00031773,2]
[381196779,1756097230710,-160.0,0.00031773,2]
[381196780,1756097230729,-160.0,0.00031773,2]
[381196781,1756097230751,-160.0,0.00031773,2]
[381196782,1756097230771,-823.0,0.00031784,2]
[381196783,1756097230795,-267.41909121,0.00031986,17]